bitfinex/quotes_BTCUSD_20251001
["timestamp","ask_amount","ask_price","bid_price","bid_amount"]
[1759315362867,0.09792979,116260.0,116250.0,9.42304778]
[1759315363624,0.09792979,116260.0,116250.0,9.33360778]
[1759315363865,0.274958,116260.0,116250.0,0.53156712]
[1759315364084,0.274958,116260.0,116250.0,1.39557013]
[1759315367080,0.274958,116260.0,116250.0,0.70361013]
[1759315367416,0.274958,116260.0,116250.0,1.33366231]
[1759315372403,0.274958,116260.0,116250.0,0.4696593]
[1759315372619,0.274958,116260.0,116250.0,1.1616193]
[1759315375078,0.274958,116260.0,116250.0,0.4696593]
[1759315375278,0.274958,116260.0,116250.0,1.1616193]
[1759315375495,0.274958,116260.0,116250.0,1.33366231]
[1759315375727,0.274958,116260.0,116250.0,1.1616193]
[1759315376633,0.274958,116260.0,116250.0,1.33366231]
[1759315376758,0.274958,116260.0,116250.0,0.64170231]
[1759315376958,0.274958,116260.0,116250.0,1.33366231]
[1759315377161,0.10292979,116260.0,116250.0,9.33366231]
[1759315377369,0.274958,116260.0,116250.0,9.33366231]
[1759315380755,0.274958,116260.0,116250.0,8.4696593]
[1759315380969,0.274958,116260.0,116250.0,8.72192201]
[1759315384121,0.274958,116260.0,116250.0,8.36996201]
[1759315384331,0.274958,116260.0,116250.0,9.06192201]
[1759315385679,0.274958,116260.0,116250.0,8.36996201]
[1759315385888,0.274958,116260.0,116250.0,1.06192201]
[1759315386943,0.272958,116260.0,116250.0,1.06192201]
[1759315387459,0.293958,116260.0,116250.0,1.06688201]
[1759315389375,0.293958,116260.0,116250.0,1.23892502]
[1759315389802,0.293958,116260.0,116250.0,1.06688201]
[1759315391095,0.293958,116260.0,116250.0,1.23892502]
[1759315391965,0.293958,116260.0,116250.0,1.06688201]
[1759315393152,0.293958,116260.0,116250.0,1.23892502]
[1759315394214,0.293958,116260.0,116250.0,1.30083284]
[1759315398135,0.11692979,116260.0,116250.0,1.30083284]
[1759315398534,0.288958,116260.0,116250.0,1.30083284]
[1759315398729,0.11692979,116260.0,116250.0,1.30083284]
[1759315399035,0.288958,116260.0,116250.0,1.30083284]
[1759315399746,0.11692979,116260.0,116250.0,1.30083284]
[1759315400192,0.288958,116260.0,116250.0,1.30083284]
[1759315403360,0.288958,116260.0,116250.0,0.85355284]
[1759315403516,0.288958,116260.0,116250.0,1.30083284]
[1759315407652,0.288958,116260.0,116250.0,1.55888284]
[1759315410767,0.288958,116260.0,116250.0,0.86696284]
[1759315410979,0.288958,116260.0,116250.0,1.55884284]
[1759315415001,0.11692979,116260.0,116250.0,1.55884284]
[1759315415207,0.288958,116260.0,116250.0,1.55884284]
[1759315416560,0.11692979,116260.0,116250.0,1.55884284]
[1759315416774,0.288958,116260.0,116250.0,1.55884284]
[1759315416992,0.11692979,116260.0,116250.0,1.55884284]
[1759315417201,0.288958,116260.0,116250.0,1.55884284]
[1759315417852,0.11692979,116260.0,116250.0,1.55884284]
[1759315418323,0.288958,116260.0,116250.0,1.55884284]
[1759315419222,0.288958,116260.0,116250.0,0.86696284]
[1759315419433,0.291028,116260.0,116250.0,1.55884284]
[1759315419673,0.294168,116260.0,116250.0,1.55884284]
[1759315419859,0.11692979,116260.0,116250.0,1.55884284]
[1759315420034,0.288958,116260.0,116250.0,0.69491983]
[1759315420254,0.291028,116260.0,116250.0,0.86696284]
[1759315420466,0.294168,116260.0,116250.0,1.55884284]
[1759315421216,0.12213979,116260.0,116250.0,1.55884284]
[1759315421416,0.12006979,116260.0,116250.0,1.55884284]
[1759315421633,0.11692979,116260.0,116250.0,1.55884284]
[1759315422039,0.12213979,116260.0,116250.0,1.55884284]
[1759315422455,0.11692979,116260.0,116250.0,1.55884284]
[1759315423226,0.11899979,116260.0,116250.0,1.55884284]
[1759315423471,0.12213979,116260.0,116250.0,9.55884284]
[1759315424505,0.11692979,116260.0,116250.0,9.55884284]
[1759315424962,0.12213979,116260.0,116250.0,9.55884284]
[1759315425366,0.11899979,116260.0,116250.0,9.55884284]
[1759315425506,0.021,116260.0,116250.0,9.55884284]
[1759315425708,0.11692979,116260.0,116250.0,9.55884284]
[1759315430148,0.11692979,116260.0,116250.0,9.58462254]
[1759315430923,0.11692979,116260.0,116250.0,8.89278254]
[1759315431134,0.11692979,116260.0,116250.0,9.58462254]
[1759315431665,0.021,116260.0,116250.0,8.89278254]
[1759315431864,0.11692979,116260.0,116250.0,9.58462254]
[1759315432389,0.021,116260.0,116250.0,9.58462254]
[1759315432572,0.11692979,116260.0,116250.0,8.89278254]
[1759315432788,0.11692979,116260.0,116250.0,9.58462254]
[1759315434058,0.021,116260.0,116250.0,9.58462254]
[1759315434263,0.11692979,116260.0,116250.0,9.58462254]
[1759315434471,0.11692979,116260.0,116250.0,8.89278254]
[1759315434681,0.11692979,116260.0,116250.0,9.58462254]
[1759315436380,0.021,116260.0,116250.0,9.58462254]
[1759315436594,0.11692979,116260.0,116250.0,9.58462254]
[1759315439872,0.11692979,116260.0,116250.0,8.89278254]
[1759315439993,0.11692979,116260.0,116250.0,9.58458254]
[1759315441372,0.021,116260.0,116250.0,9.67396801]
[1759315441572,0.11692979,116260.0,116250.0,9.68937373]
[1759315441735,0.11692979,116260.0,116250.0,9.77370497]
[1759315443554,0.021,116260.0,116250.0,9.71441687]
[1759315443761,0.021,116260.0,116250.0,9.03474333]
[1759315443969,0.00258275,116260.0,116250.0,10.16170871]
[1759315444208,0.00258275,116260.0,116250.0,10.18670871]
[1759315444436,1e-08,116260.0,116250.0,10.16772593]
[1759315444653,1e-08,116260.0,116250.0,9.66210333]
[1759315444856,1e-08,116260.0,116250.0,10.10938333]
[1759315445255,0.06947762,116300.0,116290.0,0.51198383]
[1759315445462,0.06947762,116300.0,116290.0,9.46172383]
[1759315445661,0.16747741,116300.0,116290.0,9.46172383]
[1759315445863,0.17068741,116300.0,116290.0,9.46172383]
[1759315446078,0.17068741,116300.0,116290.0,9.46210758]
[1759315446282,0.17068741,116300.0,116290.0,9.48791977]
[1759315446536,0.09422384,116300.0,116290.0,9.49091977]
[1759315446737,0.02474622,116300.0,116290.0,9.49091977]
[1759315446939,0.12067601,116300.0,116290.0,9.49091977]
[1759315447163,0.02474622,116300.0,116290.0,9.49091977]
[1759315447343,0.12067601,116300.0,116290.0,9.49091977]
[1759315448737,0.02474622,116300.0,116290.0,8.79915977]
[1759315448941,0.12067601,116300.0,116290.0,9.49087977]
[1759315449150,0.11746601,116300.0,116290.0,8.79915977]
[1759315449351,0.12067601,116300.0,116290.0,9.29607572]
[1759315449619,0.12067601,116300.0,116290.0,9.46805955]
[1759315450099,0.12067601,116300.0,116290.0,9.37861955]
[1759315450349,0.12067601,116300.0,116290.0,9.46801955]
[1759315451069,0.11539601,116300.0,116290.0,9.46801955]
[1759315451380,0.01946622,116300.0,116290.0,9.46801955]
[1759315452837,0.01946622,116300.0,116290.0,9.55740502]
[1759315453072,0.11539601,116300.0,116290.0,9.55740502]
[1759315453542,0.09639601,116300.0,116290.0,9.55440502]
[1759315454249,0.09639601,116300.0,116290.0,8.86272502]
[1759315454479,0.09639601,116300.0,116290.0,9.55436502]
[1759315454720,0.09939601,116300.0,116290.0,8.88072502]
[1759315454958,0.09939601,116300.0,116290.0,9.57236502]
[1759315455181,0.09639601,116300.0,116290.0,9.55436502]
[1759315455634,0.09839601,116300.0,116290.0,9.56836502]
[1759315456314,0.10439601,116300.0,116290.0,9.12316502]
[1759315456559,0.10439601,116300.0,116290.0,9.57028502]
[1759315458359,0.10967601,116300.0,116290.0,8.87872502]
[1759315458565,0.10967601,116300.0,116290.0,9.57028502]
[1759315459260,0.10967601,116300.0,116290.0,9.48089955]
[1759315459759,0.10439601,116300.0,116290.0,9.48089955]
[1759315463012,0.10439601,116300.0,116290.0,9.45508736]
[1759315464052,0.36689601,116300.0,116290.0,9.45508736]
[1759315468603,0.36689601,116300.0,116290.0,9.45500736]
[1759315469200,0.36689601,116300.0,116290.0,9.36560736]
[1759315469403,0.36689601,116300.0,116290.0,9.45500736]
[1759315470565,0.36689601,116300.0,116290.0,9.21060736]
[1759315470782,0.36689601,116300.0,116290.0,9.45496736]
[1759315471491,0.36689601,116300.0,116290.0,8.76352736]
[1759315471745,0.36689601,116300.0,116290.0,8.72144375]
[1759315471746,0.54397505,116300.0,116290.0,8.72144375]
[1759315471978,0.54397505,116300.0,116290.0,0.96580375]
[1759315472192,0.54397505,116300.0,116290.0,1.30580375]
[1759315472622,0.54397505,116300.0,116290.0,1.28980375]
[1759315472623,0.53597505,116300.0,116290.0,1.28980375]
[1759315472847,0.56797505,116300.0,116290.0,1.46578758]
[1759315473069,0.57097505,116300.0,116290.0,1.46778758]
[1759315473291,0.57097505,116300.0,116290.0,1.20640375]
[1759315473482,0.57097505,116300.0,116290.0,0.84872375]
[1759315473703,0.53597505,116300.0,116290.0,1.28980375]
[1759315474028,0.53597505,116300.0,116290.0,1.46178758]
[1759315476012,0.27347505,116300.0,116290.0,1.46178758]
[1759315480579,0.10150601,116300.0,116290.0,1.46178758]
[1759315483076,0.27347505,116300.0,116290.0,1.46178758]
[1759315484403,0.10150601,116300.0,116290.0,1.46178758]
[1759315484619,0.27347505,116300.0,116290.0,1.46140044]
[1759315485756,0.10150601,116300.0,116290.0,1.46140044]
[1759315486303,0.00557622,116300.0,116290.0,1.46140044]
[1759315486507,0.27347505,116300.0,116290.0,1.46140044]
[1759315486964,0.10150601,116300.0,116290.0,1.46140044]
[1759315487356,0.27347505,116300.0,116290.0,1.46140044]
[1759315488520,0.10150601,116300.0,116290.0,1.46140044]
[1759315488728,0.09639601,116300.0,116290.0,1.46140044]
[1759315489550,0.10150601,116300.0,116290.0,1.46140044]
[1759315494785,0.09939601,116300.0,116290.0,1.46140044]
[1759315495003,0.00046622,116300.0,116290.0,9.46140044]
[1759315495223,0.00046622,116300.0,116290.0,9.55078591]
[1759315495440,0.09639601,116300.0,116290.0,9.55078591]
[1759315497309,0.09639601,116300.0,116290.0,8.85934591]
[1759315497762,0.09639601,116300.0,116290.0,9.55082591]
[1759315501700,0.00046622,116300.0,116290.0,9.58097781]
[1759315501934,0.00046622,116300.0,116290.0,9.68400934]
[1759315502463,0.00046622,116300.0,116290.0,9.70900934]
[1759315502720,0.00346622,116300.0,116290.0,9.64878427]
[1759315502979,0.00646622,116300.0,116290.0,10.00842427]
[1759315503253,0.00646622,116300.0,116290.0,8.95930427]
[1759315503724,0.00646622,116300.0,116290.0,9.56134427]
[1759315503725,0.00646622,116300.0,116290.0,10.00842427]
[1759315503977,0.00646622,116300.0,116290.0,10.11660767]
[1759315504221,0.00046622,116300.0,116290.0,10.09760767]
[1759315504466,0.00046622,116300.0,116290.0,9.04848767]
[1759315504726,0.00046622,116300.0,116290.0,10.09760767]
[1759315505223,0.00046622,116300.0,116290.0,10.18811767]
[1759315505463,0.00046622,116300.0,116290.0,10.09760767]
[1759315505681,0.00046622,116300.0,116290.0,9.79152409]
[1759315505896,0.00446622,116300.0,116290.0,9.81648409]
[1759315506556,0.00646622,116300.0,116290.0,9.82348409]
[1759315507582,0.00646622,116300.0,116290.0,9.82340409]
[1759315509419,0.09592979,116320.0,116310.0,0.51195426]
[1759315509659,0.09592979,116320.0,116310.0,8.84565973]
[1759315509858,0.09592979,116320.0,116310.0,9.30226348]
[1759315510059,0.09592979,116320.0,116310.0,9.32806736]
[1759315510661,0.09892979,116320.0,116310.0,9.34506736]
[1759315510820,0.003,116320.0,116310.0,9.10074736]
[1759315511020,0.09892979,116320.0,116310.0,10.14974736]
[1759315511212,0.003,116320.0,116310.0,10.14974736]
[1759315511417,0.004,116320.0,116310.0,10.15174736]
[1759315511617,0.004,116320.0,116310.0,10.21512743]
[1759315512845,0.004,116320.0,116310.0,9.16612743]
[1759315513104,0.004,116320.0,116310.0,10.21508743]
[1759315513759,0.004,116320.0,116310.0,10.24523933]
[1759315515258,0.004,116320.0,116310.0,9.19627933]
[1759315515395,0.004,116320.0,116310.0,10.15583933]
[1759315515619,0.004,116320.0,116310.0,10.24523933]
[1759315518235,0.004,116320.0,116310.0,9.19627933]
[1759315518438,0.004,116320.0,116310.0,10.24515933]
[1759315520159,0.35842979,116330.0,116320.0,0.51193947]
[1759315520374,0.35842979,116330.0,116320.0,9.30180494]
[1759315520786,0.35842979,116330.0,116320.0,9.32799089]
[1759315521217,0.09592979,116350.0,116340.0,0.17190991]
[1759315521429,0.09605011,116350.0,116340.0,8.97891637]
[1759315521638,0.09605011,116350.0,116340.0,8.96172538]
[1759315522060,0.09605011,116350.0,116340.0,8.98790775]
[1759315522271,0.09605011,116350.0,116340.0,9.32790775]
[1759315523169,0.09605011,116350.0,116340.0,9.08362775]
[1759315523345,0.09605011,116350.0,116340.0,10.04306775]
[1759315523579,0.10005011,116350.0,116340.0,10.15946775]
[1759315524400,0.10005011,116350.0,116340.0,10.18961965]
[1759315524822,0.00412032,116350.0,116340.0,10.18961965]
[1759315525264,0.10005011,116350.0,116340.0,10.18961965]
[1759315525459,0.00412032,116350.0,116340.0,10.18961965]
[1759315526824,0.00412032,116350.0,116340.0,10.25457585]
[1759315527262,0.00412032,116350.0,116340.0,10.28400555]
[1759315528901,0.00412032,116350.0,116340.0,10.30900555]
[1759315529319,0.00412032,116350.0,116340.0,9.26016555]
[1759315529517,0.00412032,116350.0,116340.0,10.30888555]
[1759315530361,0.00412032,116350.0,116340.0,9.26016555]
[1759315530570,0.00412032,116350.0,116340.0,10.30880555]
[1759315531386,0.00412032,116350.0,116340.0,9.26016555]
[1759315531591,0.00412032,116350.0,116340.0,10.30876555]
[1759315532631,0.00412032,116350.0,116340.0,9.86188555]
[1759315532843,0.00412032,116350.0,116340.0,9.26016555]
[1759315533020,0.00412032,116350.0,116340.0,10.30876555]
[1759315536781,0.00412032,116350.0,116340.0,9.86188555]
[1759315536989,0.00412032,116350.0,116340.0,10.30876555]
[1759315539241,0.00412032,116350.0,116340.0,9.26016555]
[1759315539373,0.00412032,116350.0,116340.0,10.30868555]
[1759315540424,0.00412032,116350.0,116340.0,10.37031492]
[1759315541272,0.00412032,116350.0,116340.0,9.32179492]
[1759315541527,0.00910032,116350.0,116340.0,9.29679492]
[1759315541722,0.00910032,116350.0,116340.0,10.34527492]
[1759315541871,0.00412032,116350.0,116340.0,10.34527492]
[1759315543816,0.00412032,116350.0,116340.0,10.25591492]
[1759315544020,0.00412032,116350.0,116340.0,10.34527492]
[1759315544925,0.00412032,116350.0,116340.0,9.29679492]
[1759315545148,0.00412032,116350.0,116340.0,10.34527492]
[1759315545983,0.00412032,116350.0,116340.0,9.29679492]
[1759315546201,0.00412032,116350.0,116340.0,10.34527492]
[1759315546611,0.00412032,116350.0,116340.0,9.29679492]
[1759315546861,0.10503011,116350.0,116340.0,10.31512302]
[1759315547082,0.10503011,116350.0,116340.0,10.25349365]
[1759315547750,0.10503011,116350.0,116340.0,9.14005745]
[1759315547968,0.10503011,116350.0,116340.0,10.18853745]
[1759315550046,0.36753011,116350.0,116340.0,10.18853745]
[1759315550509,0.36753011,116350.0,116340.0,10.25016682]
[1759315550922,0.10503011,116350.0,116340.0,9.20168682]
[1759315551117,0.10503011,116350.0,116340.0,10.18853745]
[1759315552192,0.10503011,116350.0,116340.0,10.25016682]
[1759315553228,0.10503011,116350.0,116340.0,8.74650273]
[1759315553453,0.10503011,116350.0,116340.0,9.37587336]
[1759315553609,0.10503011,116350.0,116340.0,9.71587336]
[1759315554060,0.27692525,116350.0,116340.0,9.71587336]
[1759315554231,0.27692525,116350.0,116340.0,1.13171336]
[1759315554463,0.10503011,116350.0,116340.0,1.37587336]
[1759315554687,0.10503011,116350.0,116340.0,9.71587336]
[1759315555040,0.10103011,116350.0,116340.0,9.68887336]
[1759315556723,0.13003011,116350.0,116340.0,9.69187336]
[1759315558636,0.03410032,116350.0,116340.0,9.69187336]
[1759315558856,0.13003011,116350.0,116340.0,9.69187336]
[1759315562182,0.30192525,116350.0,116340.0,9.69187336]
[1759315562395,0.30192525,116350.0,116340.0,9.00087336]
[1759315562637,0.30192525,116350.0,116340.0,9.69195336]
[1759315563151,0.13003011,116350.0,116340.0,9.69195336]
[1759315563571,0.30192525,116350.0,116340.0,9.00087336]
[1759315563774,0.30192525,116350.0,116340.0,9.69195336]
[1759315563981,0.30192525,116350.0,116340.0,9.00087336]
[1759315564185,0.13003011,116350.0,116340.0,9.69195336]
[1759315564640,0.30192525,116350.0,116340.0,9.69195336]
[1759315566701,0.30192525,116350.0,116340.0,9.00087336]
[1759315566902,0.30192525,116350.0,116340.0,9.24507336]
[1759315567105,0.30192525,116350.0,116340.0,9.69195336]
[1759315568199,0.30192525,116350.0,116340.0,9.69199336]
[1759315568477,0.30192525,116350.0,116340.0,9.00087336]
[1759315568627,0.30192525,116350.0,116340.0,9.69199336]
[1759315568826,0.30192525,116350.0,116340.0,8.82896345]
[1759315569079,0.30192525,116350.0,116340.0,0.93588345]
[1759315569237,0.30192525,116350.0,116340.0,1.18008345]
[1759315570699,0.30192525,116350.0,116340.0,0.48896345]
[1759315570908,0.30192525,116350.0,116340.0,1.18008345]
[1759315571966,0.39131072,116350.0,116340.0,0.45953375]
[1759315572175,0.39131072,116350.0,116340.0,0.70373375]
[1759315572385,0.39131072,116350.0,116340.0,0.79309375]
[1759315573246,0.39131072,116350.0,116340.0,0.45953375]
[1759315573661,0.39131072,116350.0,116340.0,0.79309375]
[1759315574096,0.36231072,116350.0,116340.0,0.79009375]
[1759315574312,0.39246262,116350.0,116340.0,0.45653375]
[1759315574521,0.40646262,116350.0,116340.0,0.79309375]
[1759315574932,0.43227347,116350.0,116340.0,0.79309375]
[1759315575654,0.41827347,116350.0,116340.0,0.79009375]
[1759315576021,0.43627347,116350.0,116340.0,0.79409375]
[1759315576585,0.48527566,116350.0,116340.0,0.80009375]
[1759315576988,0.42627566,116350.0,116340.0,0.79009375]
[1759315577193,0.42627566,116350.0,116340.0,0.79509375]
[1759315577394,0.45627566,116350.0,116340.0,0.79509375]
[1759315579093,0.43046481,116350.0,116340.0,0.79509375]
[1759315579738,0.30438312,116350.0,116340.0,0.79509375]
[1759315579893,0.39231072,116350.0,116340.0,0.79509375]
[1759315582410,0.20201546,116350.0,116340.0,0.96700366]
[1759315582607,0.20201546,116350.0,116340.0,1.30700366]
[1759315582797,0.29794525,116350.0,116340.0,1.30700366]
[1759315582996,0.03012032,116350.0,116340.0,1.30700366]
[1759315583684,0.12605011,116350.0,116340.0,1.30700366]
[1759315584852,0.03012032,116350.0,116340.0,1.30700366]
[1759315585247,0.12605011,116350.0,116340.0,1.30700366]
[1759315585466,0.09605011,116350.0,116340.0,1.30200366]
[1759315585695,0.09605011,116350.0,116340.0,1.30500366]
[1759315585902,0.11305011,116350.0,116340.0,1.30500366]
[1759315586267,0.00012032,116350.0,116340.0,1.30200366]
[1759315586477,0.00212032,116350.0,116340.0,9.31000366]
[1759315586683,0.09805011,116350.0,116340.0,9.31000366]
[1759315586977,0.14205011,116350.0,116340.0,9.31600366]
[1759315587205,0.09605011,116350.0,116340.0,9.30200366]
[1759315589563,0.09605011,116350.0,116340.0,9.42154103]
[1759315589564,0.00012032,116350.0,116340.0,9.42154103]
[1759315589762,0.09605011,116350.0,116340.0,9.42154103]
[1759315590498,0.09605011,116350.0,116340.0,9.44734003]
[1759315590636,0.00012032,116350.0,116340.0,9.44734003]
[1759315591261,0.09605011,116350.0,116340.0,9.44734003]
[1759315592353,0.09605011,116350.0,116340.0,9.11378003]
[1759315592558,0.09605011,116350.0,116340.0,10.16346003]
[1759315593076,0.00012032,116350.0,116340.0,10.16346003]
[1759315593301,0.09605011,116350.0,116340.0,10.16346003]
[1759315593928,0.09605011,116350.0,116340.0,10.17546003]
[1759315594133,0.09905011,116350.0,116340.0,10.17546003]
[1759315594313,0.09905011,116350.0,116340.0,10.20446003]
[1759315594560,0.10305011,116350.0,116340.0,10.20446003]
[1759315594764,0.09605011,116350.0,116340.0,10.16346003]
[1759315595174,0.09905011,116350.0,116340.0,10.17838003]
[1759315595377,0.10405011,116350.0,116340.0,10.12198003]
[1759315595578,0.10405011,116350.0,116340.0,10.21134003]
[1759315595965,0.10405011,116350.0,116340.0,9.16178003]
[1759315596206,0.10405011,116350.0,116340.0,10.21134003]
[1759315596389,0.00812032,116350.0,116340.0,10.21134003]
[1759315596586,0.10405011,116350.0,116340.0,10.21134003]
[1759315597161,0.10405011,116350.0,116340.0,10.21130003]
[1759315598613,0.10405011,116350.0,116340.0,10.21122003]
[1759315599168,0.10405011,116350.0,116340.0,9.16178003]
[1759315599771,0.10405011,116350.0,116340.0,10.21114003]
[1759315600424,0.10405011,116350.0,116340.0,10.21110003]
[1759315600829,0.00812032,116350.0,116340.0,10.21110003]
[1759315601043,0.10405011,116350.0,116340.0,10.21110003]
[1759315601993,0.10405011,116350.0,116340.0,10.21106003]
[1759315602166,0.10405011,116350.0,116340.0,9.16178003]
[1759315602399,0.10405011,116350.0,116340.0,10.21106003]
[1759315602600,0.10405011,116350.0,116340.0,9.76400076]
[1759315602822,0.10405011,116350.0,116340.0,10.21088076]
[1759315603611,0.00812032,116350.0,116340.0,10.21088076]
[1759315603821,0.10405011,116350.0,116340.0,10.21088076]
[1759315605335,0.10405011,116350.0,116340.0,9.16156076]
[1759315605553,0.10405011,116350.0,116340.0,10.21084076]
[1759315605835,0.10405011,116350.0,116340.0,9.16156076]
[1759315606070,0.10405011,116350.0,116340.0,10.21080076]
[1759315606966,0.10405011,116350.0,116340.0,10.21076076]
[1759315607817,0.10405011,116350.0,116340.0,9.16156076]
[1759315608018,0.10405011,116350.0,116340.0,10.21076076]
[1759315608739,0.00812032,116350.0,116340.0,10.21076076]
[1759315609038,0.10405011,116350.0,116340.0,10.21076076]
[1759315609811,0.10405011,116350.0,116340.0,10.27237927]
[1759315610217,0.10405011,116350.0,116340.0,10.01098562]
[1759315611068,0.10405011,116350.0,116340.0,8.96178562]
[1759315611278,0.10914011,116350.0,116340.0,10.01098562]
[1759315612723,0.10405011,116350.0,116340.0,10.01098562]
[1759315619383,0.00812032,116350.0,116340.0,10.01098562]
[1759315619592,0.10405011,116350.0,116340.0,10.01098562]
[1759315620636,0.10405011,116350.0,116340.0,10.0728151]
[1759315620989,0.10405011,116350.0,116340.0,10.01098562]
[1759315621230,0.10405011,116350.0,116340.0,10.0728152]
[1759315621418,0.10712011,116350.0,116340.0,9.0236152]
[1759315621624,0.10914011,116350.0,116340.0,9.7152552]
[1759315622256,0.10405011,116350.0,116340.0,9.7152552]
[1759315625226,0.10914011,116350.0,116340.0,9.7152552]
[1759315625664,0.10914011,116350.0,116340.0,9.0236152]
[1759315625665,0.10405011,116350.0,116340.0,9.0236152]
[1759315625889,0.10405011,116350.0,116340.0,10.0726952]
[1759315627161,0.10712011,116350.0,116340.0,9.0236152]
[1759315627352,0.10914011,116350.0,116340.0,10.0726552]
[1759315628532,0.10914011,116350.0,116340.0,9.7150952]
[1759315629585,0.10914011,116350.0,116340.0,8.90407783]
[1759315629787,0.28103525,116350.0,116340.0,9.17904792]
[1759315629999,0.28103525,116350.0,116340.0,9.56971883]
[1759315630995,0.28103525,116350.0,116340.0,9.39780892]
[1759315631213,0.28103525,116350.0,116340.0,9.50788925]
[1759315632421,0.10914011,116350.0,116340.0,9.50788925]
[1759315632837,0.28103525,116350.0,116340.0,9.50788925]
[1759315633278,0.10914011,116350.0,116340.0,9.50788925]
[1759315634430,0.28103525,116350.0,116340.0,9.56971883]
[1759315634857,0.10914011,116350.0,116340.0,9.56971883]
[1759315635712,0.10405011,116350.0,116340.0,9.56971883]
[1759315636786,0.00812032,116350.0,116340.0,9.56971883]
[1759315636901,0.10914011,116350.0,116340.0,9.56971883]
[1759315639955,0.01321032,116350.0,116340.0,9.56971883]
[1759315640163,0.10914011,116350.0,116340.0,9.56971883]
[1759315644402,0.10607011,116350.0,116340.0,9.56971883]
[1759315645542,0.10912011,116350.0,116340.0,9.56971883]
[1759315645750,0.10912011,116350.0,116340.0,9.56963883]
[1759315645981,0.28101525,116350.0,116340.0,8.87827883]
[1759315646186,0.28101525,116350.0,116340.0,9.56959883]
[1759315647956,0.10912011,116350.0,116340.0,9.56959883]
[1759315648372,0.28101525,116350.0,116340.0,9.56963883]
[1759315648834,0.10912011,116350.0,116340.0,9.56963883]
[1759315649425,0.28101525,116350.0,116340.0,9.56963883]
[1759315649659,0.28101525,116350.0,116340.0,8.87827883]
[1759315649886,0.28101525,116350.0,116340.0,9.56959883]
[1759315650543,0.10912011,116350.0,116340.0,9.56959883]
[1759315651061,0.10607011,116350.0,116340.0,9.56959883]
[1759315651224,0.10912011,116350.0,116340.0,9.56959883]
[1759315651470,0.28101525,116350.0,116340.0,9.48015883]
[1759315651689,0.28101525,116350.0,116340.0,9.56951883]
[1759315651893,0.10912011,116350.0,116340.0,9.56951883]
[1759315657760,0.10607011,116350.0,116340.0,9.56951883]
[1759315658517,0.10607011,116350.0,116340.0,9.50768925]
[1759315660500,0.10607011,116350.0,116340.0,9.56954774]
[1759315660813,0.10912011,116350.0,116340.0,9.56954774]
[1759315664964,0.01319032,116350.0,116340.0,9.56954774]
[1759315665170,0.10405011,116350.0,116340.0,9.50768925]
[1759315665372,0.10405011,116350.0,116340.0,9.53348914]
[1759315665653,0.00812032,116350.0,116340.0,9.53348914]
[1759315666211,0.10405011,116350.0,116340.0,9.53348914]
[1759315666902,0.10405011,116350.0,116340.0,9.62287461]
[1759315667115,0.10405011,116350.0,116340.0,9.65302651]
[1759315667554,0.10405011,116350.0,116340.0,8.96178651]
[1759315667764,0.00812032,116350.0,116340.0,10.01050651]
[1759315669187,0.00812032,116350.0,116340.0,10.08761798]
[1759315669837,0.00132883,116350.0,116340.0,10.08761798]
[1759315670423,0.00132883,116350.0,116340.0,9.03889798]
[1759315670677,0.00132883,116350.0,116340.0,9.39641798]
[1759315670872,0.00132883,116350.0,116340.0,10.01054651]
[1759315672200,0.00132883,116350.0,116340.0,10.01062651]
[1759315673027,0.00132883,116350.0,116340.0,9.56370651]
[1759315673257,0.00132883,116350.0,116340.0,10.01058651]
[1759315673679,0.00132883,116350.0,116340.0,8.96178651]
[1759315673883,0.00132883,116350.0,116340.0,10.01054651]
[1759315675671,0.00448883,116350.0,116340.0,8.93163461]
[1759315675902,0.10239862,116350.0,116340.0,10.04216937]
[1759315676288,0.10239862,116350.0,116340.0,9.98236938]
[1759315676867,0.10239862,116350.0,116340.0,8.93360938]
[1759315677103,0.10239862,116350.0,116340.0,9.98232938]
[1759315677583,0.10239862,116350.0,116340.0,8.93360938]
[1759315677806,0.36489862,116350.0,116340.0,8.93360938]
[1759315678012,0.36489862,116350.0,116340.0,9.92051462]
[1759315678217,0.36489862,116350.0,116340.0,9.47363462]
[1759315678408,0.36489862,116350.0,116340.0,9.56299462]
[1759315679407,0.36489862,116350.0,116340.0,9.22935462]
[1759315679621,0.36489862,116350.0,116340.0,9.56299462]
[1759315680991,0.35975862,116350.0,116340.0,9.62476938]
[1759315682892,0.359695,116350.0,116340.0,9.62476938]
[1759315683108,0.359695,116350.0,116340.0,9.65492128]
[1759315686395,0.359695,116350.0,116340.0,9.67025799]
[1759315690231,0.26376521,116350.0,116340.0,8.97909799]
[1759315690436,0.359695,116350.0,116340.0,10.02781799]
[1759315692392,0.359695,116350.0,116340.0,8.97909799]
[1759315692620,0.359695,116350.0,116340.0,10.02777799]
[1759315693064,0.359695,116350.0,116340.0,8.97909799]
[1759315693431,0.359695,116350.0,116340.0,10.02777799]
[1759315693749,0.359695,116350.0,116340.0,8.97909799]
[1759315693954,0.359695,116350.0,116340.0,8.74913544]
[1759315694094,0.359695,116350.0,116340.0,9.35093544]
[1759315694303,0.359695,116350.0,116340.0,9.60878544]
[1759315694522,0.359695,116350.0,116340.0,10.05566544]
[1759315697410,0.359695,116350.0,116340.0,9.00698544]
[1759315697582,0.359695,116350.0,116340.0,10.05566544]
[1759315697797,0.26376521,116350.0,116340.0,9.00698544]
[1759315697995,0.359695,116350.0,116340.0,10.05566544]
[1759315698558,0.26376521,116350.0,116340.0,10.05566544]
[1759315698895,0.359695,116350.0,116340.0,10.05566544]
[1759315700470,0.359695,116350.0,116340.0,9.00698544]
[1759315700687,0.359695,116350.0,116340.0,10.05558544]
[1759315701151,0.359695,116350.0,116340.0,9.00698544]
[1759315701331,0.359695,116350.0,116340.0,10.05558544]
[1759315704058,0.359695,116350.0,116340.0,10.07090884]
[1759315704871,0.26376521,116350.0,116340.0,10.07090884]
[1759315705286,0.359695,116350.0,116340.0,10.07090884]
[1759315705978,0.35842979,116350.0,116340.0,10.02290884]
[1759315706173,0.2625,116350.0,116340.0,10.02290884]
[1759315706383,0.36142979,116350.0,116340.0,10.04290884]
[1759315706875,0.37542979,116350.0,116340.0,10.04590884]
[1759315707564,0.37242979,116350.0,116340.0,10.02590884]
[1759315707731,0.35842979,116350.0,116340.0,10.02290884]
[1759315707935,0.35842979,116350.0,116340.0,9.77862884]
[1759315708127,0.35842979,116350.0,116340.0,10.02290884]
[1759315708539,0.2625,116350.0,116340.0,10.02290884]
[1759315708916,0.2625,116350.0,116340.0,8.97430884]
[1759315709420,0.2625,116350.0,116340.0,10.02290884]
[1759315709625,0.2625,116350.0,116340.0,8.97430884]
[1759315709832,0.2625,116350.0,116340.0,10.02290884]
[1759315712858,0.2625,116350.0,116340.0,9.94579737]
[1759315713532,0.09624596,116360.0,116350.0,0.54204704]
[1759315713724,0.00036277,116360.0,116350.0,9.21084134]
[1759315713946,0.09629256,116360.0,116350.0,9.27450906]
[1759315714153,0.09629256,116360.0,116350.0,9.30030478]
[1759315714981,0.10529256,116360.0,116350.0,9.30330478]